bitfinex/quotes_SOLUSD_20250830
["timestamp","ask_amount","ask_price","bid_price","bid_amount"]
[1756567400068,5.39194055,201.0,200.94,15.679982]
[1756567400269,4.70194055,200.97,200.95,39.3]
[1756567400579,0.69,201.0,200.95,39.3]
[1756567400759,4.70194055,200.97,200.95,40.02]
[1756567401067,0.06,201.05,200.93,40.02]
[1756567401068,4.70194055,200.96,200.93,40.02]
[1756567401375,4.70194055,200.95,200.92,39.28]
[1756567401671,4.70194055,200.94,200.92,40.0]
[1756567402068,26.0,200.95,200.89,5.72762274]
[1756567402279,4.70194055,200.93,200.9,39.3]
[1756567402595,4.70194055,200.93,200.89,5.72762274]
[1756567402596,4.70194055,200.91,200.89,0.03]
[1756567402779,4.70194055,200.9,200.89,0.03]
[1756567403082,0.69,200.91,200.89,0.03]
[1756567403259,4.70194055,200.9,200.89,0.03]
[1756567404695,5.39194055,200.9,200.89,0.03]
[1756567405181,15.07148189,200.9,200.89,0.03]
[1756567407483,39.59559401,200.87,200.86,0.03]
[1756567407650,39.59559401,200.87,200.84,0.03]
[1756567407651,13.59559401,200.86,200.84,0.03]
[1756567407855,26.0,200.82,200.81,0.03]
[1756567408177,33.5155663,200.82,200.81,0.03]
[1756567408355,34.2055663,200.82,200.81,0.03]
[1756567409484,39.18515,200.82,200.81,0.03]
[1756567409957,31.6695837,200.82,200.81,0.03]
[1756567410166,92.16074401,200.82,200.79,0.03]
[1756567410378,7.5155663,200.8,200.79,0.03]
[1756567410896,8.2055663,200.8,200.79,0.03]
[1756567411483,0.69,200.8,200.79,0.03]
[1756567411779,8.2055663,200.8,200.79,0.03]
[1756567411987,13.18564598,200.8,200.79,0.03]
[1756567412384,52.58564598,200.8,200.79,0.03]
[1756567413771,13.59559401,200.85,200.79,0.03]
[1756567413984,7.5155663,200.8,200.79,0.03]
[1756567414494,8.1755663,200.8,200.79,0.03]
[1756567414806,47.5755663,200.8,200.79,0.03]
[1756567415406,52.55564598,200.8,200.79,0.03]
[1756567416292,8.1755663,200.8,200.79,0.03]
[1756567416694,7.5155663,200.8,200.79,0.03]
[1756567416887,8.2439867,200.86,200.79,0.7]
[1756567417097,7.5155663,200.81,200.79,0.7]
[1756567417290,26.0,200.83,200.8,0.67]
[1756567417682,7.5155663,200.84,200.8,5.65001929]
[1756567417876,7.5155663,200.84,200.81,0.67]
[1756567418077,7.5155663,200.85,200.82,0.67]
[1756567418301,7.5155663,200.85,200.83,0.67]
[1756567418808,40.06,200.89,200.84,0.67]
[1756567418809,26.0,200.87,200.84,0.67]
[1756567419010,7.5155663,200.87,200.84,0.67]
[1756567420299,7.5155663,200.87,200.85,0.67]
[1756567421714,33.5155663,200.87,200.82,12.49502477]
[1756567422016,33.5155663,200.87,200.83,0.67]
[1756567422303,33.5155663,200.87,200.84,0.67]
[1756567422615,7.5155663,200.86,200.84,0.67]
[1756567425594,7.5155663,200.86,200.82,62.37958057]
[1756567425905,7.5155663,200.84,200.82,57.4]
[1756567426405,7.5155663,200.83,200.82,57.4]
[1756567426614,8.1755663,200.83,200.79,0.03]
[1756567426805,0.66,200.83,200.81,0.03]
[1756567427712,26.0,200.82,200.81,0.03]
[1756567427913,33.5155663,200.82,200.81,0.03]
[1756567429406,34.1755663,200.82,200.81,0.03]
[1756567429724,33.5155663,200.82,200.81,0.03]
[1756567429919,7.5155663,200.82,200.81,0.03]
[1756567430221,7.5155663,200.82,200.81,0.7]
[1756567431319,4.69521441,200.82,200.81,0.03]
[1756567432639,30.69521441,200.82,200.81,0.03]
[1756567433005,5.35521441,200.82,200.81,0.03]
[1756567433221,4.69521441,200.82,200.81,0.03]
[1756567433814,30.69521441,200.82,200.81,0.03]
[1756567434016,5.35521441,200.82,200.81,0.03]
[1756567434507,10.33479811,200.82,200.81,0.03]
[1756567436535,31.35521441,200.82,200.81,0.03]
[1756567437817,4.97941494,200.83,200.81,0.03]
[1756567438007,4.69521441,200.82,200.81,0.03]
[1756567438723,5.35521441,200.82,200.81,0.03]
[1756567439530,30.69521441,200.82,200.81,0.03]
[1756567440025,4.69521441,200.83,200.81,0.7]
[1756567440529,4.69521441,200.83,200.82,0.67]
[1756567442239,26.0,200.85,200.82,0.67]
[1756567442430,4.69521441,200.83,200.82,0.67]
[1756567442639,4.69521441,200.83,200.82,0.72]
[1756567442938,31.36521441,200.83,200.81,0.03]
[1756567443114,5.36521441,200.82,200.81,0.03]
[1756567444231,10.34479811,200.82,200.81,0.03]
[1756567447418,5.6495837,200.82,200.81,0.03]
[1756567447614,32.80191132,200.82,200.81,0.03]
[1756567447822,28.63560653,200.82,200.81,0.03]
[1756567448134,5.6495837,200.82,200.81,0.03]
[1756567448348,5.59217356,200.83,200.81,0.03]
[1756567448652,44.58521441,200.82,200.81,0.03]
[1756567448853,39.59559401,200.79,200.78,0.2]
[1756567449021,44.29080842,200.79,200.76,0.03]
[1756567449221,4.69521441,200.77,200.76,0.03]
[1756567449832,9.55438971,200.77,200.76,0.03]
[1756567450167,14.53521353,200.77,200.76,0.03]
[1756567450524,10.34603823,200.77,200.76,0.03]
[1756567450849,26.0,200.74,200.66,0.03]
[1756567451014,4.18865157,200.75,200.69,0.72]
[1756567451212,4.69521441,200.75,200.69,5.41521441]
[1756567451419,4.69521441,200.76,200.7,5.41521441]
[1756567451621,4.69521441,200.75,200.71,0.72]
[1756567452456,4.69521441,200.75,200.72,4.98206456]
[1756567452625,4.69521441,200.75,200.73,0.72]
[1756567452816,4.69521441,200.75,200.74,0.72]
[1756567453027,26.0,200.77,200.74,0.72]
[1756567453232,4.69521441,200.77,200.74,0.72]
[1756567453549,4.69521441,200.77,200.75,0.72]
[1756567454050,4.69521441,200.77,200.76,0.72]
[1756567454220,0.67,200.81,200.76,0.72]
[1756567454419,4.69521441,200.79,200.76,5.70091725]
[1756567454640,4.69521441,200.79,200.77,0.72]
[1756567454831,4.69521441,200.79,200.78,0.72]
[1756567455241,4.18865157,200.85,200.78,0.72]
[1756567455242,26.0,200.81,200.78,0.72]
[1756567455449,30.69521441,200.81,200.78,0.72]
[1756567455757,4.69521441,200.82,200.79,0.72]
[1756567455925,0.06,200.86,200.8,0.72]
[1756567456249,4.69521441,200.83,200.8,0.72]
[1756567456547,4.69521441,200.83,200.81,0.72]
[1756567456847,26.0,200.85,200.81,0.72]
[1756567457030,26.0,200.85,200.82,0.72]
[1756567457342,30.69521441,200.84,200.82,0.72]
[1756567457545,30.69521441,200.84,200.81,4.97980305]
[1756567457843,30.69521441,200.84,200.83,0.72]
[1756567458217,0.06,200.86,200.83,0.72]
[1756567458418,0.06,200.86,200.84,0.72]
[1756567458642,4.69521441,200.85,200.84,0.72]
[1756567458828,4.75521441,200.86,200.84,0.72]
[1756567459027,0.06,200.86,200.84,0.72]
[1756567459232,4.75521441,200.86,200.84,0.72]
[1756567459630,0.06,200.86,200.84,0.72]
[1756567460037,4.75521441,200.86,200.84,0.72]
[1756567460431,0.06,200.86,200.85,0.72]
[1756567462535,0.06,200.86,200.85,5.69883993]
[1756567462949,0.06,200.86,200.83,4.97909175]
[1756567463158,0.06,200.86,200.85,0.72]
[1756567464152,0.06,200.86,200.85,5.69883993]
[1756567464542,0.06,200.86,200.85,0.72]
[1756567464735,0.06,200.86,200.84,4.97905567]
[1756567464931,0.06,200.86,200.81,4.69521441]
[1756567464932,4.75521441,200.86,200.81,4.69521441]
[1756567465138,4.69521441,200.84,200.78,4.98057575]
[1756567465341,4.69521441,200.84,200.82,0.72]
[1756567466550,4.69521441,200.85,200.82,0.72]
[1756567469036,5.42521441,200.86,200.82,0.72]
[1756567469236,4.75521441,200.86,200.81,9.70491929]
[1756567469537,4.69521441,200.82,200.81,0.03]
[1756567471760,5.38521441,200.82,200.81,0.03]
[1756567474659,0.69,200.82,200.81,0.03]
[1756567474860,5.38521441,200.82,200.81,0.03]
[1756567476436,26.0,200.83,200.81,0.03]
[1756567476964,4.69521441,200.82,200.81,0.03]
[1756567477262,5.38521441,200.82,200.81,0.03]
[1756567477440,4.69521441,200.82,200.81,0.69]
[1756567477840,4.69521441,200.82,200.81,0.03]
[1756567480055,30.69521441,200.82,200.81,0.03]
[1756567480373,31.38521441,200.82,200.81,0.03]
[1756567480542,26.0,200.82,200.81,0.03]
[1756567480742,30.69521441,200.82,200.81,0.03]
[1756567481357,26.0,200.82,200.81,0.03]
[1756567481562,30.69521441,200.82,200.81,0.03]
[1756567482346,4.69521441,200.85,200.81,0.69]
[1756567482877,4.69521441,200.85,200.82,0.66]
[1756567483056,4.69521441,200.84,200.82,0.66]
[1756567484069,0.06,200.86,200.82,0.66]
[1756567484265,0.06,200.86,200.83,0.66]
[1756567484455,4.69521441,200.84,200.83,0.66]
[1756567484653,4.69521441,200.84,200.81,0.03]
[1756567484876,4.69521441,200.82,200.81,0.03]
[1756567486066,0.69,200.84,200.81,0.03]
[1756567486278,4.69521441,200.82,200.81,0.03]
[1756567486473,0.69,200.84,200.81,0.03]
[1756567486771,4.69521441,200.82,200.81,0.03]
[1756567487361,0.69,200.84,200.81,0.03]
[1756567487567,4.69521441,200.82,200.81,0.03]
[1756567487944,0.06,200.85,200.81,0.03]
[1756567488152,4.75521441,200.85,200.81,0.69]
[1756567488679,0.06,200.85,200.82,0.66]
[1756567489188,0.06,200.85,200.82,5.35521441]
[1756567489387,0.06,200.85,200.84,4.97908783]
[1756567489858,0.06,200.85,200.84,5.63908783]
[1756567491990,4.75521441,200.85,200.82,4.9795332]
[1756567492189,4.69521441,200.84,200.82,4.9795332]
[1756567492395,4.75521441,200.85,200.82,5.6395332]
[1756567493787,4.69521441,200.84,200.81,39.17]
[1756567493984,4.69521441,200.82,200.81,0.03]
[1756567494485,0.69,200.84,200.81,5.00980016]
[1756567494486,4.69521441,200.83,200.81,5.00980016]
[1756567495187,4.69521441,200.84,200.81,5.66980016]
[1756567495886,4.69521441,200.84,200.81,5.00980016]
[1756567496200,0.06,200.87,200.82,1.15795837]
[1756567496384,0.06,200.87,200.86,4.69521441]
[1756567496590,0.06,200.87,200.86,0.66]
[1756567498171,0.06,200.87,200.86,5.63859205]
[1756567498674,0.06,200.87,200.86,10.33380646]
[1756567499385,0.06,200.87,200.86,23.92940047]
[1756567500366,5.44521441,200.87,200.84,4.97888622]
[1756567500581,4.75521441,200.87,200.84,44.35888622]
[1756567500781,0.06,200.87,200.84,44.35888622]
[1756567500975,0.06,200.87,200.84,45.01888622]
[1756567501372,0.06,200.87,200.84,44.35888622]
[1756567501574,5.44521441,200.87,200.84,44.35888622]
[1756567501782,5.44521441,200.87,200.84,39.38]
[1756567502195,4.69521441,200.85,200.81,57.43]
[1756567502391,4.69521441,200.83,200.81,57.43]
[1756567502779,4.69521441,200.83,200.81,0.03]
[1756567502990,0.60600924,200.82,200.81,0.03]
[1756567503192,4.69521441,200.83,200.81,0.03]
[1756567503775,4.69521441,200.82,200.81,0.03]
[1756567503973,30.69521441,200.82,200.81,0.03]
[1756567504584,35.67479811,200.82,200.81,0.03]
[1756567504777,40.37001252,200.82,200.78,0.03]
[1756567505095,30.69521441,200.79,200.78,0.03]
[1756567505396,26.0,200.77,200.76,0.03]
[1756567505600,4.69521441,200.77,200.76,0.03]
[1756567505776,31.38521441,200.77,200.76,0.03]
[1756567505977,30.88521441,200.77,200.76,0.03]
[1756567506702,30.88521441,200.77,200.73,0.03]
[1756567506703,49.46163224,200.77,200.73,0.03]
[1756567506897,35.39042882,200.74,200.68,0.2]
[1756567507104,13.57908039,200.72,200.68,0.2]
[1756567507318,4.69521441,200.69,200.68,0.2]
[1756567507481,4.69521441,200.69,200.66,0.03]
[1756567507482,26.0,200.67,200.66,0.03]
[1756567507677,4.69521441,200.67,200.66,0.03]
[1756567507900,5.38521441,200.67,200.66,0.03]
[1756567508100,58.50080842,200.67,200.66,0.03]
[1756567508693,63.48411434,200.67,200.66,0.03]
[1756567509315,26.0,200.64,200.63,0.03]
[1756567509486,41.06076696,200.64,200.63,0.03]
[1756567509684,41.75076696,200.64,200.63,0.03]
[1756567510502,41.75076696,200.64,200.61,0.03]
[1756567510704,7.53038348,200.62,200.61,0.03]
[1756567510882,52.03493138,200.62,200.61,0.03]
[1756567511083,52.72493138,200.62,200.61,0.03]
[1756567512408,52.72493138,200.62,200.57,0.2]
[1756567512409,26.0,200.59,200.57,0.2]
[1756567512721,33.53038348,200.59,200.57,0.2]
[1756567512915,39.20567686,200.59,200.57,0.2]
[1756567515408,33.53038348,200.59,200.57,0.2]
[1756567515706,7.53038348,200.59,200.58,0.69]
[1756567516291,7.53038348,200.59,200.58,0.03]
[1756567516603,40.19,200.63,200.58,0.03]
[1756567516790,7.53038348,200.59,200.58,0.03]
[1756567517117,12.51567686,200.59,200.58,0.03]
[1756567519114,13.20567686,200.59,200.58,0.03]
[1756567519313,52.70567686,200.59,200.58,0.03]
[1756567519906,51.99567686,200.59,200.58,0.03]
[1756567520401,52.05567686,200.59,200.58,0.03]
[1756567520718,52.74567686,200.59,200.58,0.03]
[1756567520905,66.34127087,200.59,200.58,0.03]
[1756567523525,12.57567686,200.59,200.58,0.03]
[1756567523699,52.03567686,200.59,200.58,0.03]
[1756567523899,47.05038348,200.59,200.58,0.03]
[1756567524429,52.03567686,200.59,200.58,0.03]
[1756567526624,7.59038348,200.59,200.58,0.03]
[1756567526827,47.03038348,200.59,200.58,0.03]
[1756567527311,7.59038348,200.59,200.58,0.03]
[1756567528148,0.06,200.59,200.58,0.69]
[1756567528420,7.59038348,200.59,200.58,0.69]
[1756567529224,0.06,200.59,200.58,0.69]
[1756567529921,26.06,200.59,200.58,0.69]
[1756567530122,33.59038348,200.59,200.58,0.69]
[1756567530309,33.59038348,200.59,200.58,0.03]
[1756567530713,33.59038348,200.59,200.58,0.69]
[1756567530911,0.06,200.59,200.58,0.69]
[1756567531119,7.59038348,200.59,200.58,0.69]
[1756567531428,4.76627103,200.59,200.58,0.69]
[1756567531916,0.06,200.59,200.58,5.67554192]
[1756567532302,0.06,200.59,200.58,10.38181295]
[1756567532702,0.06,200.59,200.58,5.67554192]
[1756567533430,0.06,200.59,200.58,0.69]
[1756567533925,4.76627103,200.59,200.58,0.69]
[1756567534233,0.06,200.59,200.58,0.69]
[1756567534733,0.06,200.59,200.58,5.67554192]
[1756567534916,0.06,200.59,200.58,10.38181295]
[1756567537633,0.06,200.59,200.58,5.67554192]
[1756567540236,0.06,200.59,200.58,10.38181295]
[1756567542409,1e-08,200.59,200.58,23.97740696]
[1756567543744,1e-08,200.59,200.58,147.97565796]
[1756567544839,1e-08,200.59,200.58,210.08192899]
[1756567545063,1e-08,200.62,200.61,26.0]
[1756567545340,1e-08,200.62,200.61,70.10627103]
[1756567545652,1e-08,200.62,200.61,70.82627103]
[1756567546153,1e-08,200.62,200.61,84.42186504]
[1756567546551,7.61158148,200.8,200.66,13.59559401]
[1756567546719,0.72,200.79,200.7,4.70627103]
[1756567546913,0.72,200.79,200.76,4.70627103]
[1756567547418,0.72,200.79,200.75,4.70627103]
[1756567547720,0.72,200.78,200.74,4.70627103]
[1756567547920,0.72,200.77,200.72,4.706271]
[1756567548121,5.42627103,200.76,200.72,4.706271]
[1756567548331,0.72,200.76,200.72,9.41254203]
[1756567548644,0.72,200.75,200.7,0.72]
[1756567548819,4.70627103,200.76,200.71,44.18627103]
[1756567548820,26.0,200.76,200.71,44.18627103]
[1756567549021,26.0,200.76,200.7,4.98252754]
[1756567549022,0.1,200.8,200.75,4.70627103]
[1756567549224,0.1,200.8,200.72,0.72]
[1756567549225,0.1,200.8,200.73,13.59559401]
[1756567549542,0.1,200.8,200.78,7.51245885]
[1756567549742,0.1,200.8,200.75,0.72]
[1756567549938,0.1,200.8,200.77,7.51245885]
[1756567550256,0.1,200.8,200.79,7.51245885]
[1756567550748,0.1,200.8,200.79,13.21278655]
[1756567552048,0.1,200.8,200.78,4.98055685]
[1756567552251,0.1,200.8,200.79,47.01245885]
[1756567552543,0.1,200.8,200.79,47.73245885]
[1756567552926,0.1,200.8,200.79,52.71278655]
[1756567553129,0.1,200.8,200.79,39.5]
[1756567553750,0.1,200.8,200.79,39.48]
[1756567554756,0.82,200.8,200.77,57.4]
[1756567554925,8.33245885,200.8,200.77,96.86]
[1756567555325,8.33245885,200.8,200.77,57.4]
[1756567555552,7.51245885,200.79,200.77,96.86]
[1756567555740,8.23245885,200.79,200.77,96.86]
[1756567556053,8.23245885,200.79,200.77,39.46]
[1756567556861,0.1,200.8,200.64,129.51245885]
[1756567556862,8.23245885,200.78,200.71,0.72]
[1756567557063,7.51245885,200.73,200.7,39.46]
[1756567557470,7.51245885,200.71,200.7,39.46]
[1756567557770,7.51245885,200.71,200.65,8.23245885]
[1756567557938,0.72,200.72,200.66,39.46]
[1756567557939,7.51245885,200.69,200.66,39.46]
[1756567558135,7.51245885,200.73,200.67,8.23245885]
[1756567558360,33.51245885,200.74,200.68,8.23245885]
[1756567558563,7.51245885,200.72,200.69,39.48]
[1756567558738,26.0,200.77,200.69,39.48]
[1756567558739,7.51245885,200.71,200.69,39.48]
[1756567558937,30.98160812,200.74,200.69,39.48]
[1756567559142,8.23245885,200.71,200.69,39.48]
[1756567559346,0.72,200.71,200.69,39.48]
[1756567559646,8.23245885,200.71,200.69,39.48]
[1756567559849,0.72,200.71,200.69,39.48]
[1756567560167,33.51245885,200.72,200.67,46.97245885]
[1756567560332,7.51245885,200.74,200.69,7.51245885]
[1756567560742,26.0,200.75,200.71,7.51245885]
[1756567560971,26.0,200.75,200.72,46.99245885]
[1756567561169,26.0,200.75,200.72,39.48]
[1756567561665,26.67,200.75,200.72,39.48]
[1756567561963,0.67,200.74,200.72,39.48]
[1756567562564,0.67,200.74,200.69,8.18245885]
[1756567562865,8.18245885,200.76,200.71,39.5]
[1756567563069,5.6506078,200.78,200.72,0.67]
[1756567563266,7.51245885,200.76,200.72,0.67]
[1756567563462,7.51245885,200.77,200.72,8.18245885]
[1756567563666,8.18245885,200.77,200.72,8.18245885]
[1756567564170,8.18245885,200.77,200.72,13.16443966]
[1756567564551,8.18245885,200.77,200.72,8.18245885]
[1756567565070,7.51245885,200.77,200.72,12.49450271]
[1756567565373,0.1,200.8,200.76,7.51245885]
[1756567565558,0.1,200.8,200.77,7.51245885]
[1756567565757,26.0,200.79,200.77,7.51245885]
[1756567566145,0.1,200.8,200.77,12.49320772]
[1756567566354,0.1,200.8,200.77,7.51245885]
[1756567566654,0.1,200.8,200.77,8.18245885]
[1756567567161,0.1,200.8,200.77,0.67]
[1756567568542,0.1,200.8,200.78,8.18245885]
[1756567568941,0.1,200.8,200.78,7.51245885]
[1756567569173,0.1,200.8,200.79,47.62245885]
[1756567569347,0.1,200.8,200.79,39.44]
[1756567569551,0.1,200.8,200.78,39.46]
[1756567569962,8.28245885,200.8,200.77,39.46]
[1756567570163,0.1,200.8,200.77,39.46]
[1756567570751,0.1,200.8,200.78,0.67]
[1756567570968,0.1,200.8,200.78,7.51245885]
[1756567571155,0.1,200.8,200.79,39.44]
[1756567571468,0.1,200.8,200.77,39.44]
[1756567571870,0.1,200.8,200.77,44.13622702]
[1756567572070,0.1,200.8,200.79,4.69622702]
[1756567572447,0.1,200.8,200.79,5.36622702]
[1756567572760,0.1,200.8,200.76,0.67]
[1756567572944,0.1,200.8,200.77,39.44]
[1756567573570,7.61395492,200.8,200.75,8.18395492]
[1756567573756,8.28395492,200.8,200.76,39.46]
[1756567573957,7.51395492,200.79,200.76,39.46]
[1756567574277,7.51395492,200.79,200.76,39.44]
[1756567574452,7.51395492,200.78,200.76,39.44]
[1756567574661,0.1,200.8,200.76,39.44]
[1756567574863,7.51395492,200.79,200.76,39.44]
[1756567575061,7.51395492,200.79,200.76,40.11]
[1756567575369,0.1,200.8,200.77,8.18395492]
[1756567575559,0.1,200.8,200.77,0.67]
[1756567575971,0.1,200.8,200.76,39.44]
[1756567576161,0.1,200.8,200.76,40.11]
[1756567576782,0.1,200.8,200.76,5.65104173]
[1756567577080,0.1,200.8,200.77,40.11]
[1756567577380,0.1,200.8,200.77,39.44]
[1756567577570,0.1,200.8,200.78,0.67]
[1756567578982,0.1,200.8,200.77,39.44]
[1756567579201,0.1,200.8,200.77,40.11]
[1756567579402,0.1,200.8,200.77,45.09075621]
[1756567580090,0.1,200.8,200.77,40.11]
[1756567580476,7.61395492,200.8,200.77,40.11]
[1756567580981,8.28395492,200.8,200.77,39.38]
[1756567581186,7.51395492,200.79,200.77,39.38]
[1756567581488,7.61395492,200.8,200.77,39.38]
[1756567582397,0.1,200.8,200.77,39.38]
[1756567582700,0.1,200.8,200.77,40.05]
[1756567582898,7.61395492,200.8,200.77,39.38]
[1756567583599,7.61395492,200.8,200.77,40.05]
[1756567584182,0.1,200.8,200.77,39.38]
[1756567584377,0.1,200.8,200.78,0.67]
[1756567584782,0.1,200.8,200.77,39.38]
[1756567585080,0.1,200.8,200.78,0.67]
[1756567587371,0.1,200.8,200.77,39.38]
[1756567587578,7.61395492,200.8,200.77,40.05]
[1756567587796,0.1,200.8,200.77,40.05]
[1756567589979,0.1,200.8,200.78,39.28]
[1756567592006,0.1,200.8,200.78,39.95]
[1756567595413,0.1,200.8,200.79,0.67]
[1756567596710,0.1,200.8,200.78,39.28]
[1756567596911,0.1,200.8,200.78,39.95]
[1756567599616,0.1,200.8,200.79,0.67]
[1756567599996,0.1,200.8,200.78,39.28]
[1756567600221,0.79,200.8,200.78,39.28]
[1756567600611,0.1,200.8,200.78,39.28]
[1756567601306,0.1,200.8,200.78,39.95]
[1756567602133,0.1,200.8,200.79,0.67]
[1756567602308,0.1,200.8,200.79,39.79]
[1756567603205,0.1,200.8,200.79,39.12]
[1756567603405,0.1,200.8,200.79,0.67]
[1756567603606,0.1,200.8,200.79,39.79]
[1756567604321,0.1,200.8,200.79,44.7703277]
[1756567604511,0.1,200.8,200.79,49.46651275]
[1756567604828,0.1,200.8,200.79,39.79]
[1756567605796,0.1,200.8,200.79,39.12]
[1756567606299,0.1,200.8,200.79,39.1]
[1756567607724,5.48618505,200.8,200.79,39.1]
[1756567608396,0.1,200.8,200.79,39.77]
[1756567609112,0.1,200.8,200.79,44.46618505]
[1756567609616,0.1,200.8,200.79,39.77]
[1756567610710,0.1,200.8,200.79,49.44651275]
[1756567621435,0.1,200.8,200.79,54.1426978]
[1756567622233,0.1,200.8,200.79,49.44651275]
[1756567623634,0.1,200.8,200.79,171.44651275]
[1756567626633,0.1,200.83,200.79,171.44651275]
[1756567626634,1e-08,200.83,200.8,13.59559401]
[1756567626839,1e-08,200.83,200.82,18.29177906]
[1756567627018,1e-08,200.83,200.82,18.78973743]
[1756567627223,1e-08,200.83,200.82,21.44579543]
[1756567627433,1e-08,200.83,200.82,20.94783706]
[1756567628035,1e-08,200.83,200.82,25.92742076]
[1756567629538,1e-08,200.83,200.82,147.92742076]
[1756567630917,1e-08,200.83,200.82,239.61123571]
[1756567631117,1e-08,200.83,200.82,182.21123571]
[1756567631320,1e-08,200.83,200.82,64.90742076]
[1756567631843,26.0,200.92,200.83,13.59559401]
[1756567632044,26.0,200.92,200.82,1.996058]
[1756567632045,4.69618505,200.9,200.82,1.996058]
[1756567632213,4.69618505,200.83,200.8,39.02]
[1756567632419,4.69618505,200.82,200.8,39.02]
[1756567632615,4.15930888,200.87,200.8,39.02]
[1756567632838,4.15930888,200.87,200.74,14.25559401]
[1756567632839,4.69618505,200.82,200.74,14.25559401]
[1756567633042,4.69618505,200.82,200.76,4.69618505]
[1756567633219,4.69618505,200.81,200.77,39.02]
[1756567633543,4.69618505,200.78,200.71,5.64219341]
[1756567633742,4.69618505,200.78,200.72,43.71618505]
[1756567633743,4.69618505,200.77,200.72,43.71618505]
[1756567633925,4.15930888,200.83,200.73,0.66]
[1756567633926,5.25618505,200.82,200.73,0.66]
[1756567634122,31.25618505,200.81,200.76,4.69618505]
[1756567634317,31.25618505,200.81,200.77,39.06]
[1756567634318,0.56,200.8,200.77,39.06]
[1756567634527,0.56,200.79,200.77,39.06]
[1756567634827,0.56,200.78,200.77,39.06]
[1756567635369,5.25618505,200.8,200.77,39.06]
[1756567635918,5.25618505,200.8,200.77,44.04082309]
[1756567636123,0.56,200.8,200.77,44.04082309]
[1756567636339,0.56,200.85,200.79,4.69618505]
[1756567636544,0.56,200.85,200.81,4.69618505]
[1756567636740,26.03836566,200.92,200.77,4.98082309]
[1756567636741,4.15930888,200.91,200.82,39.06]
[1756567636932,4.69618505,200.83,200.75,14.974917]
[1756567637141,13.59559401,200.89,200.7,17.4254578]
[1756567637142,4.69618505,200.78,200.76,39.08]
[1756567637348,4.69618505,200.77,200.76,39.12]
[1756567637530,0.56,200.77,200.76,39.12]
[1756567637853,0.56,200.77,200.71,0.66]
[1756567637854,26.0,200.74,200.71,0.66]
[1756567638055,5.25618505,200.73,200.71,39.14]
[1756567638250,5.25618505,200.73,200.66,82.33949135]
[1756567638251,26.0,200.7,200.64,4.72618505]
[1756567638439,4.69618505,200.69,200.65,39.18]
[1756567638643,26.0,200.7,200.65,39.18]
[1756567638838,0.56,200.71,200.65,39.18]
[1756567638839,4.69618505,200.71,200.66,0.66]
[1756567639049,26.0,200.72,200.68,4.69618505]
[1756567639239,26.0,200.72,200.68,43.87618505]
[1756567639439,4.15930888,200.79,200.7,4.69618505]
[1756567639650,0.56,200.78,200.73,4.69618505]
[1756567639828,4.69618505,200.78,200.73,4.69618505]
[1756567640032,0.56,200.77,200.73,4.69618505]
[1756567640628,4.69618505,200.78,200.73,4.69618505]
[1756567640949,0.06,200.8,200.76,4.69618505]
[1756567641150,0.06,200.8,200.77,4.69618505]
[1756567642053,0.06,200.8,200.75,5.64132004]
[1756567642351,0.06,200.8,200.77,4.69618505]